bitfinex-derivatives/quotes_SOLF0:USTF0_20250211
["timestamp","ask_amount","ask_price","bid_price","bid_amount"]
[1739291913773,5.0355,198.58,198.57,13.68465097]
[1739291914472,0.0341799,198.6,198.57,13.68465097]
[1739291915472,5.0355,198.58,198.57,13.68465097]
[1739291915673,3.84830542,198.59,198.56,0.03430698]
[1739291916671,0.0341799,198.6,198.57,13.68465097]
[1739291918076,0.0341799,198.6,198.59,5.0352]
[1739291918277,1.6007,198.7,198.57,13.68465097]
[1739291918472,5.0338,198.65,198.61,13.68465097]
[1739291918777,1.6007,198.7,198.64,13.68465097]
[1739291919477,5.0334,198.67,198.64,13.68465097]
[1739291919673,5.0334,198.67,198.65,0.03362716]
[1739291921777,5.0334,198.66,198.65,0.03362716]
[1739291923579,8.87943055,198.66,198.65,0.03362716]
[1739291924181,3.84603055,198.66,198.54,13.68465097]
[1739291924478,16.82095097,198.65,198.54,13.68465097]
[1739291924674,5.0357,198.58,198.54,13.68465097]
[1739291925178,5.07383384,198.58,198.54,13.72264535]
[1739291925880,5.0358,198.57,198.54,13.72264535]
[1739291926182,0.03813384,198.58,198.54,13.72264535]
[1739291927483,5.0359,198.57,198.54,13.72264535]
[1739291927881,0.03813384,198.58,198.54,13.72264535]
[1739291928679,5.036,198.56,198.54,13.72264535]
[1739291928979,0.03813384,198.58,198.54,13.72264535]
[1739291929184,0.03813384,198.58,198.54,0.03799438]
[1739291929479,5.0362,198.55,198.54,0.03799438]
[1739291930975,8.88466031,198.55,198.54,0.03799438]
[1739291931683,5.0362,198.55,198.54,0.03799438]
[1739291933482,8.88594676,198.55,198.54,0.03799438]
[1739291933877,5.0377,198.5,198.48,13.68465097]
[1739291934078,3.84974676,198.55,198.45,13.68465097]
[1739291934274,1.5127,198.57,198.45,13.68465097]
[1739291934475,5.0374,198.51,198.45,13.68465097]
[1739291934676,1.5127,198.57,198.48,13.68465097]
[1739291935084,5.07497958,198.54,198.51,0.03590671]
[1739291935584,3.85298328,198.53,198.51,13.72055768]
[1739291935984,0.03827958,198.54,198.51,13.72055768]
[1739291936385,5.07497958,198.54,198.51,13.72055768]
[1739291936681,0.03827958,198.54,198.51,13.72055768]
[1739291936885,5.0368,198.53,198.51,0.03590671]
[1739291937278,5.0367,198.53,198.51,0.03590671]
[1739291938090,5.037,198.52,198.51,0.03590671]
[1739291938289,0.03827958,198.54,198.51,0.03590671]
[1739291939090,0.03827958,198.54,198.51,13.72055768]
[1739291939789,0.03827958,198.54,198.52,5.0368]
[1739291940191,0.03827958,198.54,198.51,13.72055768]
[1739291940391,5.07497958,198.54,198.51,13.72055768]
[1739291941090,0.03827958,198.54,198.51,13.72055768]
[1739291941492,0.03827958,198.54,198.52,5.0369]
[1739291941696,0.03827958,198.54,198.51,13.72055768]
[1739291941889,0.03827958,198.54,198.51,0.03590671]
[1739291942087,5.037,198.52,198.51,0.03590671]
[1739291943093,0.03827958,198.54,198.42,13.68465097]
[1739291943293,1.5701,198.51,198.39,13.68465097]
[1739291943786,10.02109634,198.5,198.42,13.68465097]
[1739291943987,10.02109634,198.5,198.45,13.68465097]
[1739291944289,0.03768884,198.48,198.47,5.0381]
[1739291945394,0.03768884,198.48,198.46,5.0384]
[1739291946393,0.03768884,198.48,198.47,5.0382]
[1739291947487,1.5701,198.57,198.53,5.0367]
[1739291947691,5.0358,198.57,198.52,13.68465097]
[1739291948089,3.85076892,198.56,198.49,13.68465097]
[1739291948288,5.0365,198.54,198.49,13.68465097]
[1739291948596,0.0385315,198.53,198.5,0.0329119]
[1739291949299,5.0752315,198.53,198.5,0.0329119]
[1739291950496,5.0752315,198.53,198.5,5.0703119]
[1739291950799,0.0385315,198.53,198.5,0.0329119]
[1739291951199,0.0385315,198.53,198.5,5.0703119]
[1739291951694,5.0754315,198.53,198.5,0.0329119]
[1739291953299,0.0385315,198.53,198.5,0.0329119]
[1739291954497,5.0372,198.51,198.5,0.0329119]
[1739291958602,13.72318247,198.53,198.39,13.68465097]
[1739291958797,3.0368,198.5,198.39,13.68465097]
[1739291959403,3.84221478,198.49,198.41,5.0397]
[1739291959702,0.03441636,198.46,198.43,0.03326917]
[1739291960402,5.07311636,198.46,198.43,0.03326917]
[1739291961101,5.07311636,198.46,198.43,5.07246917]
[1739291961594,5.039,198.44,198.43,0.03326917]
[1739291964303,5.039,198.44,198.34,92.1439]
[1739291964304,0.03441636,198.46,198.34,90.64]
[1739291964496,13.68465097,198.47,198.34,90.64]
[1739291964700,5.0407,198.38,198.35,5.0413]
[1739291964900,5.0407,198.38,198.34,90.64]
[1739291965305,5.07769103,198.38,198.34,90.67207386]
[1739291965599,5.07769103,198.38,198.34,95.71337386]
[1739291965800,5.07769103,198.38,198.34,90.67207386]
[1739291966404,5.07769103,198.38,198.34,95.71337386]
[1739291967304,0.03699103,198.38,198.35,5.0412]
[1739291970311,0.03699103,198.38,198.34,0.03207386]
[1739291970702,0.03699103,198.38,198.35,5.0411]
[1739291971301,0.03699103,198.38,198.34,0.03207386]
[1739291971607,0.03699103,198.38,198.36,13.68465097]
[1739291971998,5.0387,198.46,198.36,13.68465097]
[1739291972204,1.5143,198.49,198.42,13.68465097]
[1739291972604,5.0384,198.47,198.43,5.0391]
[1739291973202,5.0387,198.46,198.43,0.03242032]
[1739291973910,5.0387,198.46,198.43,5.07162032]
[1739291974211,5.0387,198.46,198.43,0.03242032]
[1739291975011,5.0388,198.45,198.43,0.03242032]
[1739291977004,5.0386,198.46,198.43,0.03242032]
[1739291978108,5.0388,198.45,198.43,0.03242032]
[1739291979907,0.03416405,198.47,198.43,0.03242032]
[1739291980103,0.03416405,198.47,198.45,13.68465097]
[1739291980509,0.03416405,198.47,198.45,18.72325097]
[1739291981010,0.03416405,198.47,198.46,5.0385]
[1739291981210,0.03416405,198.47,198.43,0.03242032]
[1739291981606,5.039,198.45,198.43,0.03242032]
[1739291981911,0.03416405,198.47,198.43,0.03242032]
[1739291982515,5.0387,198.46,198.43,0.03242032]
[1739291982710,0.03416405,198.47,198.43,0.03242032]
[1739291983112,5.039,198.44,198.43,0.03242032]
[1739291984717,0.03416405,198.47,198.43,0.03242032]
[1739291985618,3.84178197,198.46,198.43,0.03242032]
[1739291985918,5.039,198.44,198.43,0.03242032]
[1739291987824,5.039,198.44,198.31,43.88237229]
[1739291987825,13.71881502,198.47,198.33,13.68465097]
[1739291988025,13.68465097,198.44,198.33,13.68465097]
[1739291988225,13.68465097,198.44,198.34,5.0415]
[1739291988428,5.0407,198.38,198.34,5.0415]
[1739291988727,13.68465097,198.44,198.33,5.0417]
[1739291988926,5.0415,198.35,198.29,3.1566]
[1739291989125,0.03831914,198.4,198.27,104.34465097]
[1739291989320,13.68465097,198.38,198.3,0.03734205]
[1739291989521,5.07670235,198.34,198.3,0.03734205]
[1739291990124,5.07670235,198.34,198.3,5.07964205]
[1739291990928,5.07670235,198.34,198.31,5.0423]
[1739291991826,0.03500235,198.34,198.33,5.0418]
[1739291992028,0.03500235,198.34,198.3,13.72199302]
[1739291992331,0.03500235,198.34,198.32,5.042]
[1739291992528,0.03500235,198.34,198.3,13.72199302]
[1739291993226,0.03500235,198.34,198.33,5.0418]
[1739291994233,0.03500235,198.34,198.33,18.72645097]
[1739291994426,1.5421,198.43,198.33,13.68465097]
[1739291994626,1.5189,198.46,198.36,13.68465097]
[1739291995033,5.04,198.41,198.37,5.0407]
[1739291995331,1.5189,198.46,198.37,5.0407]
[1739291995725,0.03715006,198.43,198.4,0.03403404]
[1739291996331,3.83818391,198.42,198.4,0.03403404]
[1739291996631,5.0398,198.41,198.4,0.03403404]
[1739291997131,0.03715006,198.43,198.4,0.03403404]
[1739291997328,5.07665006,198.43,198.4,0.03403404]
[1739291998130,5.07665006,198.43,198.4,5.07403404]
[1739291998436,0.03715006,198.43,198.4,0.03403404]
[1739291999937,0.03715006,198.43,198.41,5.0396]
[1739292000331,0.03715006,198.43,198.4,0.03403404]
[1739292001037,3.84271171,198.42,198.4,0.03403404]
[1739292002034,0.03715006,198.43,198.4,0.03403404]
[1739292003237,9.99950573,198.42,198.4,0.03403404]
[1739292004045,3.84596374,198.41,198.4,0.03403404]
[1739292005543,3.84596374,198.41,198.4,5.07403404]
[1739292005744,0.03715006,198.43,198.4,0.03403404]
[1739292006041,5.07645006,198.43,198.4,0.03403404]
[1739292007237,5.0398,198.41,198.4,0.03403404]
[1739292008340,15.04088679,198.41,198.4,0.03403404]
[1739292010437,10.00108679,198.41,198.4,0.03403404]
[1739292010943,10.00108679,198.41,198.4,5.07403404]
[1739292011145,5.07655006,198.43,198.4,5.07403404]
[1739292011543,0.03715006,198.43,198.41,5.0395]
[1739292011743,0.03715006,198.43,198.42,13.68465097]
[1739292012245,84.96932628,198.54,198.42,13.68465097]
[1739292012446,10.00419114,198.53,198.42,13.68465097]
[1739292012743,5.0375,198.5,198.46,5.0384]
[1739292012945,10.00419114,198.53,198.45,13.68465097]
[1739292013140,3.84776582,198.49,198.45,13.68465097]
[1739292013343,3.84776582,198.49,198.47,0.03195056]
[1739292013842,0.0368505,198.51,198.47,0.03195056]
[1739292014249,0.0368505,198.51,198.47,5.06995056]
[1739292014846,0.0368505,198.51,198.48,5.038]
[1739292015243,0.0368505,198.51,198.47,0.03195056]
[1739292015448,5.0740505,198.51,198.47,5.07015056]
[1739292016548,0.0368505,198.51,198.48,5.038]
[1739292016847,0.0368505,198.51,198.47,0.03195056]
[1739292017150,5.0375,198.5,198.47,0.03195056]
[1739292017644,0.0368505,198.51,198.47,0.03195056]
[1739292017645,5.038,198.48,198.47,0.03195056]
[1739292018446,8.88058447,198.48,198.47,0.03195056]
[1739292019445,3.84258447,198.48,198.47,0.03195056]
[1739292019649,0.0368505,198.51,198.47,0.03195056]
[1739292020351,5.0377,198.5,198.47,0.03195056]
[1739292020550,0.0368505,198.51,198.47,0.03195056]
[1739292020752,3.84413071,198.5,198.47,0.03195056]
[1739292021254,5.0377,198.49,198.47,0.03195056]
[1739292021552,0.0368505,198.51,198.47,0.03195056]
[1739292021749,5.038,198.48,198.47,0.03195056]
[1739292022756,15.03012358,198.48,198.47,0.03195056]
[1739292023651,9.99212358,198.48,198.47,0.03195056]
[1739292024048,3.84312445,198.48,198.47,0.03195056]
[1739292024255,3.84312445,198.48,198.47,5.07025056]
[1739292025553,0.0368505,198.51,198.49,5.0377]
[1739292025753,0.0368505,198.51,198.47,0.03195056]
[1739292026153,5.0375,198.5,198.47,0.03195056]
[1739292026455,0.0368505,198.51,198.47,0.03195056]
[1739292027152,5.0741505,198.51,198.47,5.07005056]
[1739292027357,0.0368505,198.51,198.47,0.03195056]
[1739292027859,5.0743505,198.51,198.47,0.03195056]
[1739292028156,0.0368505,198.51,198.47,0.03195056]
[1739292028356,0.0368505,198.51,198.5,5.0375]
[1739292028556,0.0368505,198.51,198.5,18.72215097]
[1739292029456,0.0368505,198.51,198.5,13.68465097]
[1739292029655,0.0368505,198.51,198.47,13.71660153]
[1739292029855,0.0368505,198.51,198.5,13.68465097]
[1739292030259,0.0368505,198.51,198.5,18.72215097]
[1739292030755,1.6198,198.61,198.5,13.68465097]
[1739292030960,1.6198,198.61,198.53,13.68465097]
[1739292031352,3.84160116,198.6,198.53,13.68465097]
[1739292031854,5.0364,198.55,198.51,5.0372]
[1739292032155,0.0323231,198.58,198.51,0.03189311]
[1739292032359,5.0358,198.57,198.53,5.0367]
[1739292032755,0.0323231,198.58,198.51,0.03189311]
[1739292032955,5.036,198.56,198.51,5.06889311]
[1739292033160,0.0323231,198.58,198.51,0.03189311]
[1739292034660,0.0323231,198.58,198.53,13.68465097]
[1739292034852,5.0680231,198.58,198.54,5.0364]
[1739292035159,0.0323231,198.58,198.53,13.68465097]
[1739292035557,0.0323231,198.58,198.55,5.0361]
[1739292035963,0.0323231,198.58,198.53,13.68465097]
[1739292036364,0.0323231,198.58,198.51,0.03189311]
[1739292036864,5.0362,198.56,198.52,5.0368]
[1739292037160,0.0323231,198.58,198.51,0.03189311]
[1739292037665,0.0323231,198.58,198.52,5.0367]
[1739292038854,0.0323231,198.58,198.51,0.03189311]
[1739292039566,5.0369,198.53,198.51,0.03189311]
[1739292040664,5.037,198.52,198.51,0.03189311]
[1739292042269,0.03775794,198.54,198.44,13.68465097]
[1739292042456,13.68465097,198.55,198.42,5.0394]
[1739292042862,9.97999528,198.54,198.41,13.68465097]
[1739292043069,9.97999528,198.54,198.43,5.0392]
[1739292043266,5.0382,198.48,198.41,13.68465097]
[1739292043466,5.0382,198.48,198.47,0.03735693]
[1739292043665,5.0382,198.48,198.41,13.68465097]
[1739292043868,0.03873235,198.5,198.46,0.0343411]
[1739292045468,5.0378,198.49,198.46,0.0343411]
[1739292045768,0.03873235,198.5,198.46,0.0343411]
[1739292046671,5.0381,198.48,198.46,0.0343411]
[1739292047060,0.03873235,198.5,198.46,0.0343411]
[1739292047270,5.0383,198.47,198.46,0.0343411]
[1739292047668,0.03873235,198.5,198.41,13.68465097]
[1739292047974,5.039,198.45,198.41,18.72435097]
[1739292048270,13.68465097,198.52,198.41,18.72435097]
[1739292048466,5.0389,198.45,198.42,5.0395]
[1739292048865,5.07397292,198.45,198.42,5.07705047]
[1739292049066,0.03507292,198.45,198.42,0.03755047]
[1739292049260,0.03507292,198.45,198.44,5.039]
[1739292049469,0.03507292,198.45,198.44,18.72365097]
[1739292051571,0.03507292,198.45,198.44,13.68465097]
[1739292052573,0.03507292,198.45,198.42,0.03755047]
[1739292052970,5.0393,198.43,198.42,0.03755047]
[1739292053667,5.0391,198.44,198.42,0.03755047]
[1739292054271,0.03507292,198.45,198.42,0.03755047]
[1739292055177,0.03507292,198.45,198.44,5.039]
[1739292055471,0.03507292,198.45,198.44,18.72365097]
[1739292057067,4.5151,198.56,198.48,5.038]
[1739292057274,3.85054628,198.55,198.48,5.038]
[1739292057467,3.85054628,198.55,198.47,13.68465097]
[1739292057667,3.85054628,198.55,198.5,13.68465097]
[1739292058171,10.0130754,198.54,198.5,13.68465097]
[1739292058471,10.04871675,198.54,198.51,5.07047282]
[1739292058676,10.04871675,198.54,198.51,0.03327282]
[1739292058976,3.85054628,198.53,198.51,0.03327282]
[1739292059172,8.88724628,198.53,198.51,0.03327282]
[1739292059372,3.85054628,198.53,198.51,0.03327282]
[1739292059776,0.03564135,198.54,198.51,0.03327282]
[1739292060479,0.03564135,198.54,198.51,5.07027282]
[1739292060778,0.03564135,198.54,198.51,0.03327282]
[1739292061171,8.88982757,198.53,198.51,0.03327282]
[1739292061573,3.85312757,198.53,198.51,0.03327282]
[1739292061875,0.03564135,198.54,198.51,0.03327282]
[1739292062374,5.0367,198.53,198.51,0.03327282]
[1739292062579,0.03564135,198.54,198.51,0.03327282]
[1739292063985,0.03564135,198.54,198.53,13.68465097]
[1739292064179,5.035,198.6,198.56,5.0359]
[1739292064381,6.16718114,198.61,198.5,13.68465097]
[1739292064580,5.0355,198.58,198.52,5.0369]
[1739292064793,19.85183211,198.61,198.52,5.0369]
[1739292064991,3.85266524,198.57,198.52,5.0369]
[1739292065291,0.03737859,198.56,198.53,0.03675421]
[1739292065885,0.03737859,198.56,198.54,5.0364]
[1739292066186,0.03737859,198.56,198.53,0.03675421]
[1739292066985,0.03737859,198.56,198.53,5.07325421]
[1739292067691,0.03737859,198.56,198.53,0.03675421]
[1739292067881,5.07357859,198.56,198.53,0.03675421]
[1739292068084,0.03737859,198.56,198.53,5.07345421]
[1739292068789,0.03737859,198.56,198.53,13.72140518]
[1739292069391,0.03737859,198.56,198.55,5.0362]
[1739292070189,18.25735097,198.7,198.58,5.0354]
[1739292070389,18.25735097,198.7,198.57,13.68465097]
[1739292070692,6.16175981,198.69,198.59,5.0352]
[1739292070888,10.01285969,198.69,198.6,13.68465097]
[1739292071193,10.01285969,198.69,198.6,18.71935097]
[1739292071392,0.03484276,198.66,198.63,0.03547189]
[1739292071591,5.0339,198.64,198.63,0.03547189]
[1739292072384,8.88499988,198.64,198.63,0.03547189]
[1739292073889,5.0355,198.58,198.54,13.68465097]
[1739292074389,6.15615756,198.63,198.54,13.68465097]
[1739292074889,3.84690826,198.62,198.54,13.68465097]
[1739292075190,5.0730715,198.6,198.57,0.03485941]
[1739292075591,0.0380715,198.6,198.57,0.03485941]
[1739292076491,5.0355,198.58,198.57,0.03485941]
[1739292077494,5.0368,198.53,198.49,5.0377]
[1739292077694,13.68465097,198.58,198.45,13.68465097]
[1739292077893,13.68465097,198.58,198.46,0.88681717]
[1739292078090,5.0378,198.49,198.45,18.72335097]
[1739292078794,5.06982364,198.49,198.45,18.76082174]
[1739292078989,0.03202364,198.49,198.46,5.0384]
[1739292079198,0.03202364,198.49,198.45,13.72212174]
[1739292080299,0.03202364,198.49,198.48,18.72265097]
[1739292080986,1.5691,198.63,198.48,13.68465097]
[1739292081185,1.5691,198.63,198.45,0.03747077]
[1739292081186,3.84790555,198.58,198.51,13.68465097]
[1739292081591,1.5691,198.63,198.51,13.68465097]
[1739292081793,1.5691,198.63,198.53,5.0365]
[1739292081989,0.03642225,198.59,198.55,0.03543984]
[1739292082386,5.036,198.56,198.55,0.03543984]
[1739292084995,8.88482112,198.56,198.55,0.03543984]
[1739292085596,5.0373,198.51,198.45,13.68465097]
[1739292085891,13.68465097,198.58,198.48,5.038]
[1739292086495,10.00730464,198.57,198.48,5.038]
[1739292086793,5.0372,198.52,198.51,0.03679766]
[1739292087098,0.03550338,198.55,198.52,5.0369]
[1739292087502,0.03550338,198.55,198.51,0.03679766]
[1739292087503,5.07170338,198.55,198.51,0.03679766]
[1739292088498,0.03550338,198.55,198.51,0.03679766]
[1739292089196,0.03550338,198.55,198.51,13.72144863]
[1739292090694,0.03550338,198.55,198.52,5.0369]
[1739292090894,0.03550338,198.55,198.51,13.72144863]
[1739292091499,0.03550338,198.55,198.53,5.0365]
[1739292091798,0.03550338,198.55,198.51,13.72144863]
[1739292091997,0.03550338,198.55,198.54,5.0365]
[1739292092199,0.03550338,198.55,198.54,18.72115097]
[1739292095308,5.0345,198.62,198.58,5.0353]
[1739292096201,13.68465097,198.67,198.54,13.68465097]
[1739292096402,0.03346889,198.62,198.58,0.03393709]
[1739292096903,8.89019999,198.61,198.58,0.03393709]
[1739292097203,3.85549999,198.61,198.58,0.03393709]
[1739292097403,5.0352,198.6,198.58,0.03393709]
[1739292097601,3.85549999,198.61,198.58,0.03393709]
[1739292097901,0.03346889,198.62,198.58,0.03393709]
[1739292098097,5.0352,198.59,198.58,0.03393709]
[1739292098802,8.89674098,198.59,198.58,0.03393709]
[1739292099403,3.86154098,198.59,198.58,0.03393709]
[1739292099800,3.86154098,198.59,198.58,5.06943709]
[1739292100401,5.06796889,198.62,198.58,0.03393709]
[1739292100601,5.06796889,198.62,198.59,5.0352]
[1739292100903,3.86616264,198.61,198.59,5.0352]
[1739292101505,5.06796889,198.62,198.59,13.68465097]
[1739292101506,0.03346889,198.62,198.59,13.68465097]
[1739292102305,0.03346889,198.62,198.61,5.0347]
[1739292104602,5.0328,198.69,198.65,5.0337]
[1739292104805,3.1371,198.74,198.63,13.68465097]
[1739292105703,0.03284231,198.7,198.67,0.03539856]
[1739292106904,5.0327,198.69,198.67,0.03539856]
[1739292108501,5.0329,198.68,198.67,0.03539856]
[1739292109705,5.0341,198.64,198.6,18.71955097]
[1739292110708,5.0341,198.64,198.6,13.68465097]
[1739292110909,5.06920304,198.64,198.61,5.0347]
[1739292111109,0.03510304,198.64,198.6,0.03791698]
[1739292111308,5.0347,198.61,198.6,0.03791698]
[1739292113404,5.0344,198.63,198.6,0.03791698]
[1739292113602,0.03510304,198.64,198.6,0.03791698]
[1739292114408,5.0342,198.63,198.6,0.03791698]
[1739292114707,0.03510304,198.64,198.6,0.03791698]
[1739292115512,5.0342,198.63,198.6,0.03791698]
[1739292115714,0.03510304,198.64,198.6,0.03791698]
[1739292116017,5.0342,198.63,198.6,0.03791698]
[1739292116315,0.03510304,198.64,198.6,0.03791698]
[1739292116815,5.0347,198.61,198.6,0.03791698]
[1739292117613,5.0345,198.62,198.6,0.03791698]
[1739292118515,5.0342,198.63,198.6,0.03791698]
[1739292119114,0.03510304,198.64,198.6,0.03791698]
[1739292119819,0.03510304,198.64,198.6,13.72256795]
[1739292120016,5.06910304,198.64,198.61,5.0347]
[1739292120314,0.03510304,198.64,198.6,13.72256795]
[1739292120710,0.03510304,198.64,198.61,5.0345]
[1739292122210,0.03510304,198.64,198.6,13.72256795]
[1739292122217,0.03510304,198.64,198.62,5.0344]
[1739292122416,0.03510304,198.64,198.6,13.72256795]
[1739292122417,0.03510304,198.64,198.63,13.68465097]
[1739292122817,0.03510304,198.64,198.63,18.71885097]
[1739292123418,1.5561,198.72,198.63,13.68465097]
[1739292123717,1.5561,198.72,198.67,5.0331]
[1739292124118,6.5882,198.72,198.67,5.0331]
[1739292124317,5.0321,198.72,198.67,5.0331]
[1739292124520,1.5864,198.78,198.69,5.0327]
[1739292125017,0.03543508,198.75,198.68,0.03181496]
[1739292125517,5.0321,198.72,198.68,0.03181496]
[1739292126417,0.03543508,198.75,198.68,0.03181496]
[1739292127950,3.73757747,198.74,198.68,0.03181496]
[1739292128527,3.73757747,198.73,198.69,5.0326]
[1739292129021,0.03543508,198.75,198.69,5.0326]
[1739292129522,5.0321,198.72,198.69,5.0326]
[1739292129929,5.0327,198.69,198.68,0.03181496]
[1739292130827,0.03287197,198.7,198.68,0.03181496]
[1739292131530,0.03287197,198.7,198.68,5.06451496]
[1739292132229,0.03287197,198.7,198.68,0.03181496]
[1739292132433,0.03287197,198.7,198.69,5.0327]
[1739292133233,0.03287197,198.7,198.69,18.71735097]
[1739292133529,0.03287197,198.7,198.69,13.68465097]
[1739292133731,0.03287197,198.7,198.68,0.03181496]
[1739292134530,5.0327,198.69,198.68,0.03181496]
[1739292134830,5.06527197,198.7,198.68,0.03181496]
[1739292135034,0.03287197,198.7,198.68,0.03181496]
[1739292136535,5.06527197,198.7,198.68,0.03181496]
[1739292136736,0.03287197,198.7,198.68,0.03181496]
[1739292138135,0.03287197,198.7,198.68,5.06461496]
[1739292138334,0.03287197,198.7,198.68,0.03181496]
[1739292138636,0.03287197,198.7,198.69,13.68465097]
[1739292138831,0.03287197,198.7,198.69,18.71735097]
[1739292141443,13.68465097,198.82,198.69,13.68465097]
[1739292142037,13.68465097,198.82,198.61,7.9795]
[1739292142038,17.42506419,198.79,198.68,5.0329]
[1739292142234,17.42506419,198.79,198.66,13.68465097]
[1739292142537,0.03538868,198.74,198.71,0.03610585]
[1739292142738,5.0317,198.73,198.71,0.03610585]
[1739292142938,0.03538868,198.74,198.71,0.03610585]
[1739292144336,5.0319,198.72,198.71,0.03610585]
[1739292146539,0.03538868,198.74,198.63,13.68465097]
[1739292146739,3.0863,198.73,198.63,13.68465097]
[1739292147138,3.74288185,198.72,198.63,13.68465097]
[1739292147538,0.03268903,198.69,198.66,0.03708857]
[1739292147739,5.0332,198.67,198.66,0.03708857]
[1739292148239,0.03268903,198.69,198.66,0.03708857]
[1739292148940,5.06538903,198.69,198.66,0.03708857]
[1739292149241,0.03268903,198.69,198.66,0.03708857]
[1739292149542,0.03268903,198.69,198.66,13.72173954]
[1739292149943,0.03268903,198.69,198.68,5.0329]
[1739292150837,2.9515,198.79,198.72,5.0317]
[1739292151142,5.031,198.76,198.72,5.0317]
[1739292151341,2.9515,198.79,198.73,5.0316]
[1739292151738,0.03675043,198.78,198.74,0.03352202]
[1739292153042,0.03675043,198.78,198.76,5.0308]
[1739292153239,0.03675043,198.78,198.74,0.03352202]
[1739292154642,0.03675043,198.78,198.76,13.68465097]
[1739292155045,0.03675043,198.78,198.77,5.0306]
[1739292156447,0.03675043,198.78,198.76,18.71545097]
[1739292158147,0.03675043,198.78,198.77,5.0306]
[1739292158845,2.9597,198.86,198.78,5.0302]
[1739292159044,2.9597,198.86,198.79,13.68465097]
[1739292159543,5.0292,198.83,198.79,13.68465097]
[1739292159744,1.5883,198.91,198.82,13.68465097]
[1739292159943,0.03522514,198.83,198.82,13.68465097]
[1739292160144,1.5883,198.91,198.82,13.68465097]
[1739292160345,0.03571183,198.84,198.82,13.68465097]
[1739292160645,5.0661701,198.85,198.82,13.68465097]
[1739292162242,0.0372701,198.85,198.82,13.68465097]
[1739292162447,5.0289,198.84,198.82,13.68465097]
[1739292162747,0.0372701,198.85,198.82,13.68465097]
[1739292163154,5.0658701,198.85,198.82,13.68465097]
[1739292163749,5.0658701,198.85,198.82,18.71405097]
[1739292164250,5.0658701,198.85,198.82,13.68465097]
[1739292164445,0.0372701,198.85,198.82,13.68465097]
[1739292164851,0.0372701,198.85,198.81,0.03811032]
[1739292165145,5.0294,198.82,198.81,0.03811032]
[1739292168948,0.0372701,198.85,198.81,0.03811032]
[1739292169156,5.0289,198.84,198.81,0.03811032]
[1739292169845,5.0292,198.83,198.81,0.03811032]
[1739292170055,0.0372701,198.85,198.81,0.03811032]
[1739292170452,5.0291,198.84,198.81,0.03811032]
[1739292170653,5.0291,198.84,198.81,5.06771032]
[1739292171056,0.0372701,198.85,198.81,0.03811032]
[1739292171247,0.0372701,198.85,198.82,13.68465097]
[1739292171651,195.0,198.95,198.82,13.68465097]
[1739292171955,83.40572628,198.98,198.89,18.71215097]
[1739292171956,4.4987,198.98,198.89,18.71215097]
[1739292172148,3.73439452,198.94,198.89,18.71215097]
[1739292172456,3.73439452,198.94,198.92,13.68465097]
[1739292172655,3.0302,198.98,198.92,13.68465097]
[1739292172854,0.03685743,198.95,198.92,13.68465097]
[1739292173046,5.06295743,198.95,198.92,13.68465097]
[1739292173251,0.03685743,198.95,198.92,13.68465097]
[1739292173952,5.06295743,198.95,198.92,13.68465097]
[1739292174150,0.03685743,198.95,198.92,13.68465097]
[1739292174752,5.0266,198.93,198.91,0.03444905]
[1739292174951,0.03685743,198.95,198.91,0.03444905]
[1739292175658,5.0269,198.92,198.91,0.03444905]
[1739292175957,0.03685743,198.95,198.91,0.03444905]
[1739292176253,5.0269,198.92,198.91,0.03444905]
[1739292176655,0.03685743,198.95,198.86,13.68465097]
[1739292176855,13.68465097,198.96,198.86,13.68465097]
[1739292177158,5.0275,198.9,198.86,18.71295097]
[1739292177354,3.0302,198.98,198.86,18.71295097]
[1739292177554,5.0267,198.93,198.86,13.68465097]
[1739292177761,0.03465776,198.94,198.9,0.03815261]
[1739292178258,5.0271,198.91,198.9,0.03815261]
[1739292178654,5.0267,198.93,198.9,0.03815261]
[1739292178850,0.03465776,198.94,198.9,0.03815261]
[1739292179558,5.06115776,198.94,198.9,5.06545261]
[1739292179759,0.03465776,198.94,198.9,0.03815261]
[1739292179961,0.03465776,198.94,198.93,5.0266]
[1739292180653,0.03465776,198.94,198.92,13.68465097]
[1739292180857,0.03465776,198.94,198.9,0.03815261]
[1739292181661,0.03465776,198.94,198.9,5.06535261]
[1739292182465,0.03465776,198.94,198.9,0.03815261]
[1739292182760,5.06115776,198.94,198.9,0.03815261]
[1739292182963,0.03465776,198.94,198.9,0.03815261]
[1739292183160,5.0271,198.91,198.9,0.03815261]
[1739292184862,5.0281,198.87,198.86,13.68465097]
[1739292185065,1.5216,198.93,198.83,13.68465097]
[1739292186164,5.0282,198.87,198.86,0.03650225]
[1739292186364,0.03467274,198.9,198.86,0.03650225]
[1739292186567,0.03467274,198.9,198.87,5.0281]
[1739292188264,0.03467274,198.9,198.86,13.72115322]